bitfinex/quotes_SOLUSD_20251106
["timestamp","ask_amount","ask_price","bid_price","bid_amount"]
[1762454990986,5.53323432,158.58,158.55,7.54]
[1762454991701,0.1,158.59,158.56,51.34067608]
[1762454991891,0.1,158.59,158.57,7.54]
[1762454992876,5.53323432,158.58,158.54,100.63075564]
[1762454993094,5.63323432,158.59,158.55,7.54]
[1762454993308,0.1,158.59,158.56,0.63067608]
[1762454993502,0.1,158.59,158.57,7.54]
[1762454993803,0.1,158.59,158.57,0.68]
[1762454993993,0.1,158.59,158.58,7.54]
[1762454994190,0.1,158.59,158.56,0.63067608]
[1762454994500,0.1,158.59,158.57,7.54]
[1762454994705,5.63323432,158.59,158.57,7.54]
[1762454995484,0.1,158.59,158.57,7.54]
[1762454998104,0.1,158.59,158.58,0.68]
[1762454998303,0.1,158.59,158.57,8.22]
[1762454998604,0.1,158.59,158.57,7.54]
[1762454998992,0.1,158.59,158.55,32.23897857]
[1762454999192,0.68,158.58,158.55,0.63071586]
[1762454999411,5.53323432,158.56,158.52,51.31083522]
[1762454999611,5.53323432,158.57,158.54,50.0]
[1762454999797,5.53323432,158.58,158.55,7.54]
[1762455000311,5.63323432,158.59,158.55,7.54]
[1762455000812,5.53323432,158.58,158.55,7.54]
[1762455001211,0.1,158.59,158.56,51.31067608]
[1762455001390,0.1,158.59,158.58,55.53323432]
[1762455001595,0.1,158.59,158.58,112.4697963]
[1762455001887,0.1,158.59,158.58,113.1497963]
[1762455002095,0.1,158.62,158.61,50.0]
[1762455002392,0.1,158.62,158.61,63.70371159]
[1762455002582,0.1,158.62,158.61,64.38371159]
[1762455002782,5.53323432,158.71,158.66,50.0]
[1762455003010,5.53323432,158.71,158.67,7.54]
[1762455003183,0.1,158.75,158.64,50.0]
[1762455003184,5.53323432,158.69,158.64,50.0]
[1762455003383,0.68,158.7,158.65,7.54]
[1762455003811,6.21323432,158.7,158.65,7.54]
[1762455004013,5.53323432,158.69,158.65,7.54]
[1762455004316,0.68,158.69,158.65,7.54]
[1762455004614,7.79545603,158.68,158.66,7.54]
[1762455004798,0.68,158.69,158.66,7.54]
[1762455004996,0.68,158.71,158.66,7.54]
[1762455005411,7.79545603,158.67,158.61,58.47545603]
[1762455005609,7.79545603,158.66,158.62,7.54]
[1762455006115,7.79545603,158.66,158.61,50.63047727]
[1762455006317,7.79545603,158.66,158.62,7.54]
[1762455006318,8.47545603,158.66,158.62,7.54]
[1762455006506,0.68,158.71,158.65,50.0]
[1762455006699,8.47545603,158.7,158.66,8.17027858]
[1762455007020,7.79545603,158.69,158.66,7.54]
[1762455007208,7.79545603,158.67,158.59,50.0]
[1762455007412,7.79545603,158.6,158.55,50.0]
[1762455007592,7.79545603,158.57,158.56,7.54]
[1762455007792,7.79545603,158.57,158.56,57.54]
[1762455008099,8.47545603,158.57,158.52,50.0]
[1762455008294,8.47545603,158.56,158.5,108.42637085]
[1762455008491,7.79545603,158.53,158.48,100.0]
[1762455008693,7.79545603,158.5,158.46,50.63107408]
[1762455008894,30.38082769,158.59,158.47,7.54]
[1762455008895,7.79545603,158.49,158.47,7.54]
[1762455009100,7.79545603,158.49,158.43,69.97555178]
[1762455009101,7.79545603,158.48,158.43,100.0]
[1762455009303,7.79545603,158.44,158.41,50.0]
[1762455009522,0.68,158.47,158.42,7.54]
[1762455009722,8.47545603,158.47,158.42,7.54]
[1762455010128,8.47545603,158.47,158.41,64.1078866]
[1762455010129,0.68,158.46,158.37,100.0]
[1762455010418,7.79545603,158.44,158.39,50.0]
[1762455010620,7.79545603,158.44,158.39,50.63135298]
[1762455010815,0.68,158.43,158.39,50.63135298]
[1762455011206,7.79545603,158.42,158.4,7.56]
[1762455011517,8.47545603,158.41,158.4,7.56]
[1762455011717,0.68,158.41,158.4,7.56]
[1762455011938,8.47545603,158.41,158.4,7.56]
[1762455012219,7.79545603,158.42,158.4,7.56]
[1762455012430,0.68,158.43,158.4,7.56]
[1762455012600,7.79545603,158.41,158.4,7.56]
[1762455013114,8.47545603,158.41,158.4,7.56]
[1762455013321,0.68,158.41,158.4,7.56]
[1762455013519,8.47545603,158.41,158.4,7.56]
[1762455013724,0.68,158.41,158.4,7.56]
[1762455014024,8.47545603,158.41,158.4,7.56]
[1762455014540,8.47545603,158.41,158.36,0.63147259]
[1762455014695,7.79545603,158.38,158.37,7.56]
[1762455015628,0.68,158.38,158.37,7.56]
[1762455015833,7.79545603,158.38,158.37,7.56]
[1762455016133,8.47545603,158.38,158.37,7.56]
[1762455016324,8.47545603,158.38,158.3,0.88]
[1762455016506,0.68,158.39,158.33,50.0]
[1762455016823,8.47545603,158.43,158.38,50.0]
[1762455017021,8.47545603,158.43,158.39,7.56]
[1762455017234,17.34882769,158.48,158.39,7.56]
[1762455017235,7.79545603,158.4,158.39,7.56]
[1762455017414,7.79545603,158.4,158.32,50.0]
[1762455017617,7.79545603,158.34,158.33,7.56]
[1762455017929,7.79545603,158.37,158.33,7.56]
[1762455018119,7.79545603,158.38,158.33,7.56]
[1762455018431,7.79545603,158.34,158.33,7.56]
[1762455018806,0.68,158.37,158.3,50.2]
[1762455019125,7.79545603,158.34,158.31,7.58]
[1762455019532,7.79545603,158.33,158.31,7.58]
[1762455019833,7.79545603,158.32,158.3,0.2]
[1762455020017,7.79545603,158.31,158.3,0.2]
[1762455020206,0.68,158.36,158.3,7.78]
[1762455020404,0.68,158.35,158.3,7.78]
[1762455020639,7.79545603,158.31,158.3,7.78]
[1762455022217,7.79545603,158.32,158.3,7.78]
[1762455022536,7.79545603,158.33,158.3,7.78]
[1762455022734,6.31352989,158.39,158.3,7.78]
[1762455022918,7.79545603,158.36,158.3,23.19421846]
[1762455023123,7.79545603,158.34,158.3,9.08171193]
[1762455023340,7.79545603,158.35,158.3,9.08171193]
[1762455023841,7.79545603,158.35,158.3,15.39881919]
[1762455024144,8.46545603,158.35,158.3,15.39881919]
[1762455024845,7.79545603,158.36,158.31,50.67]
[1762455025017,7.79545603,158.4,158.34,7.79545603]
[1762455025215,7.79545603,158.38,158.34,0.63155235]
[1762455025524,7.79545603,158.35,158.3,0.2]
[1762455025838,7.79545603,158.31,158.3,0.2]
[1762455026341,8.46545603,158.31,158.3,0.2]
[1762455028219,0.67,158.35,158.3,0.2]
[1762455028422,7.79545603,158.34,158.31,7.58]
[1762455028725,7.79545603,158.34,158.3,0.87]
[1762455028726,7.79545603,158.32,158.3,0.2]
[1762455029042,7.79545603,158.35,158.3,0.87]
[1762455029348,8.46545603,158.35,158.31,7.58]
[1762455029721,7.79545603,158.34,158.31,7.58]
[1762455029922,8.46545603,158.34,158.31,7.58]
[1762455030143,7.79545603,158.34,158.31,7.58]
[1762455030658,7.79545603,158.33,158.31,7.58]
[1762455030821,7.79545603,158.32,158.31,7.58]
[1762455031022,0.67,158.37,158.31,8.25]
[1762455031240,7.79545603,158.36,158.31,8.25]
[1762455031546,0.67,158.37,158.31,7.58]
[1762455031547,7.79545603,158.34,158.31,7.58]
[1762455031849,7.79545603,158.36,158.31,7.58]
[1762455032019,8.46545603,158.37,158.32,50.0]
[1762455032232,7.79545603,158.37,158.32,58.46545603]
[1762455032426,8.46545603,158.37,158.32,51.30163213]
[1762455032645,0.67,158.37,158.32,65.41337498]
[1762455033321,0.67,158.37,158.32,59.09708816]
[1762455033522,7.79545603,158.36,158.31,7.58]
[1762455033829,0.67,158.4,158.33,7.79545603]
[1762455034028,7.79545603,158.39,158.34,8.21155235]
[1762455034477,7.79545603,158.39,158.34,8.88155235]
[1762455034623,7.79545603,158.39,158.34,8.21155235]
[1762455034941,7.79545603,158.37,158.34,7.58]
[1762455035131,7.79545603,158.37,158.35,7.58]
[1762455035539,7.79545603,158.38,158.35,7.58]
[1762455035726,8.46545603,158.39,158.35,7.58]
[1762455036121,6.31276768,158.41,158.3,0.2]
[1762455036122,7.79545603,158.36,158.3,0.2]
[1762455036427,7.79545603,158.32,158.3,0.2]
[1762455036627,7.79545603,158.33,158.3,0.2]
[1762455037130,7.79545603,158.32,158.3,0.2]
[1762455037554,8.49545603,158.32,158.3,0.2]
[1762455037934,7.79545603,158.31,158.3,0.2]
[1762455038335,8.49545603,158.31,158.3,0.2]
[1762455038534,0.7,158.33,158.3,0.2]
[1762455038737,0.7,158.35,158.3,0.2]
[1762455039046,7.79545603,158.33,158.3,0.2]
[1762455039555,8.49545603,158.33,158.3,0.2]
[1762455039760,7.79545603,158.32,158.3,0.2]
[1762455040639,8.49545603,158.32,158.3,0.2]
[1762455040842,8.49545603,158.31,158.3,0.2]
[1762455041056,7.79545603,158.32,158.3,7.78]
[1762455041355,7.79545603,158.33,158.3,7.78]
[1762455041660,7.79545603,158.36,158.31,0.7]
[1762455041979,7.79545603,158.34,158.3,7.78]
[1762455042162,0.7,158.38,158.3,7.78]
[1762455042336,7.79545603,158.31,158.3,7.78]
[1762455042846,9.78882769,158.36,158.3,0.2]
[1762455042847,7.79545603,158.32,158.3,0.2]
[1762455043158,7.79545603,158.33,158.3,0.2]
[1762455043558,0.7,158.37,158.31,0.63167203]
[1762455043771,7.79545603,158.37,158.32,7.58]
[1762455043963,7.79545603,158.36,158.32,7.58]
[1762455044152,8.49545603,158.36,158.32,7.58]
[1762455044455,0.7,158.36,158.32,7.58]
[1762455044667,0.7,158.36,158.32,15.37545603]
[1762455045053,0.7,158.36,158.32,7.58]
[1762455045255,8.49545603,158.36,158.32,7.58]
[1762455045865,7.79545603,158.35,158.32,7.58]
[1762455046063,7.79545603,158.34,158.32,7.58]
[1762455046484,8.49545603,158.33,158.31,7.58]
[1762455046768,7.79545603,158.36,158.31,7.58]
[1762455046980,7.79545603,158.34,158.31,7.58]
[1762455047764,7.79545603,158.35,158.31,7.58]
[1762455048076,7.79545603,158.34,158.31,7.58]
[1762455048252,7.79545603,158.34,158.3,0.2]
[1762455048458,8.49545603,158.33,158.3,0.2]
[1762455048780,7.79545603,158.31,158.3,0.2]
[1762455049253,8.49545603,158.31,158.3,0.2]
[1762455050582,16.10402218,158.35,158.3,0.2]
[1762455050583,7.79545603,158.32,158.3,0.2]
[1762455051071,8.49545603,158.31,158.3,0.2]
[1762455051651,7.79545603,158.31,158.3,0.2]
[1762455052057,8.49545603,158.31,158.3,0.2]
[1762455052648,14.81217638,158.31,158.3,0.2]
[1762455052870,8.49545603,158.31,158.3,0.2]
[1762455053068,6.31472594,158.36,158.3,0.2]
[1762455053303,17.58428372,158.31,158.3,0.2]
[1762455053674,18.30428372,158.31,158.3,0.2]
[1762455054962,7.58,158.35,158.3,0.2]
[1762455055167,7.79545603,158.32,158.3,0.2]
[1762455055383,8.51545603,158.31,158.3,0.2]
[1762455056376,24.62100407,158.31,158.3,0.2]
[1762455056775,18.30428372,158.31,158.3,0.2]
[1762455058807,24.62100407,158.31,158.3,0.2]
[1762455058975,10.50882769,158.31,158.3,0.2]
[1762455059300,24.62100407,158.31,158.3,0.2]
[1762455059875,18.30428372,158.31,158.3,0.2]
[1762455061723,24.62100407,158.31,158.3,0.2]
[1762455062187,9.78882769,158.26,158.23,0.2]
[1762455062512,0.72,158.25,158.23,0.2]
[1762455062814,7.79545603,158.26,158.23,0.91]
[1762455063024,9.78882769,158.27,158.23,0.91]
[1762455063320,7.79545603,158.28,158.23,8.70545603]
[1762455063514,7.79545603,158.27,158.23,0.91]
[1762455064014,7.79545603,158.27,158.24,0.71]
[1762455064214,7.79545603,158.28,158.24,0.71]
[1762455064388,9.78882769,158.31,158.24,8.50545603]
[1762455064710,7.79545603,158.3,158.25,7.56]
[1762455064885,10.50882769,158.31,158.25,8.27]
[1762455064886,7.79545603,158.29,158.25,8.27]
[1762455065086,7.79545603,158.28,158.25,8.27]
[1762455065385,7.79545603,158.29,158.25,8.27]
[1762455066211,7.79545603,158.29,158.25,7.56]
[1762455066412,27.62788536,158.34,158.27,4.98559275]
[1762455066706,14.77442044,158.33,158.26,7.02848973]
[1762455067210,4.98559275,158.31,158.26,0.71]
[1762455067506,4.98559275,158.31,158.27,0.71]
[1762455067712,14.77442044,158.28,158.23,0.2]
[1762455067910,14.77442044,158.24,158.23,0.2]
[1762455068087,22.33442044,158.24,158.23,0.2]
[1762455068287,23.05442044,158.24,158.23,0.2]
[1762455068694,15.49442044,158.24,158.23,0.2]
[1762455070012,21.8139351,158.24,158.23,0.2]
[1762455071200,42.4059351,158.24,158.23,0.2]
[1762455071521,49.9459351,158.24,158.23,0.2]
[1762455071700,49.9459351,158.24,158.18,0.2]
[1762455071701,9.78882769,158.23,158.18,0.2]
[1762455071907,21.27000244,158.23,158.18,0.2]
[1762455072102,14.77442044,158.19,158.18,0.2]
[1762455072316,4.98559275,158.19,158.18,0.2]
[1762455072516,5.70559275,158.19,158.18,0.2]
[1762455072909,9.78882769,158.18,158.1,0.71]
[1762455073103,4.98559275,158.12,158.1,0.71]
[1762455073624,38.73106665,158.18,158.08,7.56]
[1762455073796,4.98559275,158.11,158.08,7.56]
[1762455074002,4.98559275,158.1,158.08,7.56]
[1762455074420,4.98559275,158.1,158.08,8.27]
[1762455074615,4.98559275,158.11,158.08,8.27]
[1762455075122,4.98559275,158.11,158.09,0.71]
[1762455075316,4.98559275,158.1,158.08,7.56]
[1762455075501,4.98559275,158.09,158.08,7.56]
[1762455075700,4.98559275,158.09,158.05,0.71]
[1762455076002,4.98559275,158.08,158.05,0.71]
[1762455076208,4.98559275,158.07,158.04,7.56]
[1762455076420,9.78882769,158.1,158.05,0.71]
[1762455076621,4.98559275,158.1,158.05,0.71]
[1762455076820,4.98559275,158.09,158.05,0.71]
[1762455077525,0.72,158.11,158.0,56.32904705]
[1762455077526,4.98559275,158.06,158.0,56.32904705]
[1762455077735,10.50882769,158.08,158.0,56.32904705]
[1762455077736,4.98559275,158.07,158.01,5.69559275]
[1762455077915,4.98559275,158.07,158.02,0.71]
[1762455079134,14.60516038,158.1,158.02,62.023816]
[1762455079135,0.72,158.1,158.02,62.023816]
[1762455079306,9.78882769,158.08,158.03,4.98559275]
[1762455079509,9.78882769,158.08,158.03,5.69559275]
[1762455079703,0.72,158.1,158.04,0.71]
[1762455079915,4.98559275,158.08,158.04,0.71]
[1762455080128,4.98559275,158.09,158.04,5.69559275]
[1762455080328,4.98559275,158.09,158.04,0.71]
[1762455080513,4.98559275,158.09,158.05,0.71]
[1762455080711,20.592,158.12,158.06,12.52559275]
[1762455080712,4.98559275,158.12,158.06,12.52559275]
[1762455080927,4.98559275,158.12,158.07,4.98559275]
[1762455081136,9.78882769,158.13,158.07,5.69559275]
[1762455081313,7.11224039,158.18,158.12,4.98559275]
[1762455081314,4.98559275,158.18,158.12,4.98559275]
[1762455081520,0.72,158.21,158.14,4.98559275]
[1762455081829,4.98559275,158.2,158.14,4.98559275]
[1762455082035,6.31911532,158.25,158.16,4.98559275]
[1762455082221,4.98559275,158.21,158.17,7.56]
[1762455082426,21.312,158.24,158.17,7.56]
[1762455082427,4.98559275,158.22,158.17,8.25]
[1762455082729,4.98559275,158.21,158.17,8.25]
[1762455083233,4.98559275,158.22,158.17,13.23559275]
[1762455083432,4.98559275,158.22,158.17,19.55786776]
[1762455083743,14.77442044,158.24,158.19,4.98559275]
[1762455083910,4.98559275,158.26,158.21,4.98559275]
[1762455084114,4.98559275,158.26,158.21,12.54559275]
[1762455084328,4.98559275,158.26,158.21,13.23559275]
[1762455084555,9.78882769,158.25,158.21,13.23559275]
[1762455084911,25.76629388,158.31,158.21,13.23559275]
[1762455084912,9.78882769,158.28,158.24,4.98559275]
[1762455085218,9.78882769,158.28,158.21,64.51266252]
[1762455085219,5.66559275,158.31,158.25,13.23559275]
[1762455085426,4.98559275,158.3,158.25,8.25]
[1762455086231,0.68,158.31,158.26,0.69]
[1762455086527,4.98559275,158.3,158.26,0.69]
[1762455086925,5.66559275,158.31,158.26,5.67559275]
[1762455087427,4.98559275,158.32,158.27,0.69]
[1762455087729,4.98559275,158.31,158.27,0.69]
[1762455088320,9.78882769,158.36,158.27,0.69]
[1762455088518,4.98559275,158.31,158.27,0.69]
[1762455088719,0.68,158.34,158.27,0.69]
[1762455089030,4.98559275,158.32,158.27,0.69]
[1762455089220,4.98559275,158.31,158.27,0.69]
[1762455089734,4.98559275,158.32,158.27,0.69]
[1762455090422,4.98559275,158.33,158.27,7.00825942]
[1762455090730,30.38082769,158.36,158.29,4.98559275]
[1762455090945,9.78882769,158.32,158.27,0.63183168]
[1762455091140,9.78882769,158.23,158.11,0.69]
[1762455091338,20.592,158.24,158.06,62.54559275]
[1762455091339,9.78882769,158.19,158.06,62.54559275]
[1762455091554,4.98559275,158.11,158.07,7.56]
[1762455091847,4.98559275,158.14,158.08,55.67559275]
[1762455092228,4.98559275,158.13,158.09,0.69]
[1762455093722,4.98559275,158.12,158.09,0.69]
[1762455094941,9.78882769,158.17,158.1,50.0]
[1762455095141,4.98559275,158.15,158.11,7.56]
[1762455095325,4.98559275,158.15,158.12,0.69]
[1762455096031,4.98559275,158.17,158.12,0.69]
[1762455096233,4.98559275,158.18,158.13,50.0]
[1762455096425,4.98559275,158.18,158.14,0.69]
[1762455096630,4.98559275,158.18,158.15,7.56]
[1762455097352,4.98559275,158.19,158.16,0.72]
[1762455097653,4.98559275,158.21,158.16,0.72]
[1762455098026,4.98559275,158.22,158.17,50.0]
[1762455098231,4.98559275,158.22,158.18,8.28]
[1762455098644,4.98559275,158.22,158.19,0.72]
[1762455100164,4.98559275,158.22,158.18,7.56]
[1762455100165,4.98559275,158.2,158.16,0.72]
[1762455100349,4.98559275,158.19,158.17,7.56]
[1762455100556,4.98559275,158.2,158.17,7.56]
[1762455100946,4.98559275,158.2,158.17,8.28]
[1762455101144,4.98559275,158.19,158.17,7.56]
[1762455101348,9.78882769,158.17,158.13,0.72]
[1762455101575,4.98559275,158.14,158.07,50.0]
[1762455101780,4.98559275,158.11,158.08,8.28]
[1762455102146,4.98559275,158.12,158.09,0.72]
[1762455102380,4.98559275,158.13,158.09,0.72]
[1762455102687,4.98559275,158.16,158.1,4.98559275]
[1762455102888,4.98559275,158.12,158.1,7.56]
[1762455103579,4.98559275,158.11,158.1,7.56]
[1762455104275,9.78882769,158.13,158.1,7.56]
[1762455104449,4.98559275,158.11,158.1,7.56]
[1762455104650,4.98559275,158.11,158.09,7.56]
[1762455105082,4.98559275,158.11,158.09,8.28]
[1762455105579,4.98559275,158.12,158.09,8.28]
[1762455106381,4.98559275,158.12,158.1,0.72]
[1762455106679,4.98559275,158.16,158.1,5.70559275]
[1762455106869,4.98559275,158.16,158.11,4.98559275]
[1762455107057,4.98559275,158.16,158.12,7.56]
[1762455107377,4.98559275,158.16,158.12,8.28]
[1762455107680,4.98559275,158.16,158.13,0.72]
[1762455108675,4.98559275,158.15,158.13,0.72]
[1762455108980,4.98559275,158.16,158.13,0.72]
[1762455109178,9.78882769,158.19,158.14,7.56]
[1762455109384,4.98559275,158.17,158.14,7.56]
[1762455109616,4.98559275,158.17,158.14,8.28]
[1762455109767,4.98559275,158.17,158.14,7.56]
[1762455109970,4.98559275,158.2,158.15,50.72]
[1762455110171,9.78882769,158.23,158.16,7.56]
[1762455110172,4.98559275,158.21,158.16,7.56]
[1762455110376,4.98559275,158.21,158.16,8.28]
[1762455110577,4.98559275,158.21,158.17,0.72]
[1762455110889,9.78882769,158.23,158.17,0.72]
[1762455110890,4.98559275,158.19,158.17,0.72]
[1762455111065,4.98559275,158.18,158.15,0.72]
[1762455111261,4.98559275,158.19,158.16,7.56]
[1762455111478,4.98559275,158.18,158.17,7.56]
[1762455111785,30.38082769,158.17,158.05,0.72]
[1762455111971,4.98559275,158.09,158.06,57.56]
[1762455112283,4.98559275,158.1,158.06,57.56]
[1762455112487,4.98559275,158.1,158.06,58.28]
[1762455112668,4.98559275,158.09,158.07,0.72]
[1762455112874,20.592,158.17,158.07,0.72]
[1762455113068,4.98559275,158.11,158.07,0.72]
[1762455113267,4.98559275,158.11,158.07,7.04630627]
[1762455113789,4.98559275,158.11,158.08,0.72]
[1762455114093,4.98559275,158.11,158.09,7.56]
[1762455114884,4.98559275,158.12,158.09,7.56]
[1762455115083,4.98559275,158.11,158.09,7.56]
[1762455117571,9.78882769,158.13,158.09,7.56]
[1762455117890,4.98559275,158.1,158.09,7.56]
[1762455119068,0.7,158.15,158.09,8.28]
[1762455119272,0.7,158.15,158.09,7.56]
[1762455119483,4.98559275,158.11,158.09,7.56]
[1762455119683,4.98559275,158.11,158.06,50.0]
[1762455119684,4.98559275,158.1,158.05,0.15190894]
[1762455119986,4.98559275,158.1,158.04,21.312]
[1762455119987,4.98559275,158.07,158.06,7.54]
[1762455120367,4.98559275,158.07,158.03,0.72]
[1762455120569,4.98559275,158.06,158.04,7.54]
[1762455120788,9.78882769,158.12,158.04,7.54]
[1762455120996,4.98559275,158.11,158.06,4.98559275]
[1762455121181,4.98559275,158.11,158.07,8.26]
[1762455121488,4.98559275,158.08,158.07,7.54]
[1762455121993,4.98559275,158.11,158.07,8.26]
[1762455122584,0.7,158.14,158.07,57.54]
[1762455122777,4.98559275,158.13,158.08,0.72]
[1762455122978,4.98559275,158.11,158.08,0.72]
[1762455123175,4.98559275,158.13,158.08,5.70559275]
[1762455123373,4.98559275,158.22,158.12,4.98559275]
[1762455123585,0.7,158.23,158.14,4.98559275]
[1762455123869,4.98559275,158.2,158.14,4.98559275]
[1762455124073,4.98559275,158.19,158.15,0.72]
[1762455124274,4.98559275,158.19,158.16,7.54]
[1762455124480,4.98559275,158.2,158.16,7.54]
[1762455124679,4.98559275,158.19,158.14,0.72]
[1762455124880,4.98559275,158.18,158.15,7.56]
[1762455125282,4.98559275,158.2,158.16,0.72]
[1762455125472,7.01962697,158.24,158.16,55.70559275]
[1762455125678,4.98559275,158.2,158.16,50.72]
[1762455126090,4.98559275,158.21,158.17,7.04229294]
[1762455126300,10.48882769,158.23,158.14,100.0]
[1762455126511,7.84542828,158.17,158.13,0.72]
[1762455126806,7.84542828,158.17,158.15,7.56]
[1762455127011,7.84542828,158.19,158.15,7.56]
[1762455127188,7.84542828,158.19,158.15,8.28]
[1762455127388,7.84542828,158.19,158.16,0.72]
[1762455127591,110.74542828,158.21,158.16,8.56542828]
[1762455127912,7.84542828,158.18,158.15,7.56]
[1762455128428,7.84542828,158.18,158.15,0.72]
[1762455128600,7.84542828,158.16,158.1,58.56542828]
[1762455128923,7.84542828,158.14,158.11,8.28]
[1762455129125,9.78882769,158.2,158.12,7.56]
[1762455129424,7.84542828,158.17,158.12,66.12542828]
[1762455129711,7.84542828,158.17,158.13,0.72]
[1762455129902,7.84542828,158.16,158.13,0.72]
[1762455130082,10.48882769,158.2,158.13,0.72]
[1762455130286,7.84542828,158.19,158.13,14.88903852]
[1762455130601,7.84542828,158.2,158.15,7.84542828]
[1762455130789,7.84542828,158.2,158.16,8.28]
[1762455130996,7.84542828,158.21,158.16,16.12542828]
[1762455131302,20.592,158.23,158.16,16.12542828]
[1762455131303,7.84542828,158.23,158.18,7.84542828]
[1762455131518,9.78882769,158.26,158.17,50.72]
[1762455131519,7.84542828,158.2,158.17,0.72]
[1762455131810,10.48882769,158.24,158.19,7.56]
[1762455132011,7.84542828,158.2,158.19,7.56]
[1762455132213,7.84542828,158.21,158.19,7.56]
[1762455132409,7.84542828,158.2,158.19,7.56]
[1762455132581,7.84542828,158.2,158.16,7.56]
[1762455132786,7.84542828,158.18,158.16,7.56]
[1762455132983,7.84542828,158.19,158.16,7.56]
[1762455133784,7.84542828,158.19,158.16,8.28]
[1762455134385,102.9,158.18,158.16,7.56]
[1762455134611,7.84542828,158.17,158.11,0.72]
[1762455134807,7.84542828,158.14,158.12,7.56]
[1762455135005,7.84542828,158.15,158.12,7.56]
[1762455135205,102.9,158.18,158.13,0.72]
[1762455135420,7.84542828,158.16,158.12,7.56]
[1762455135612,102.9,158.18,158.02,19.05999999]
[1762455135613,7.84542828,158.13,158.05,100.0]
[1762455135787,0.7,158.17,158.07,0.72]
[1762455135788,7.84542828,158.12,158.07,0.72]
[1762455135993,7.84542828,158.12,158.08,7.56]
[1762455136194,7.84542828,158.13,158.08,7.56]
[1762455136415,17.63425597,158.14,158.09,0.72]
[1762455137122,7.84542828,158.13,158.09,0.72]
[1762455137617,9.78882769,158.14,158.05,0.72]
[1762455137618,7.84542828,158.1,158.05,0.72]
[1762455137923,0.7,158.12,158.05,7.56]
[1762455137924,9.78882769,158.11,158.05,7.56]
[1762455138215,7.84542828,158.07,158.05,7.56]
[1762455138403,7.84542828,158.06,158.05,7.56]
[1762455138719,9.78882769,158.09,158.01,0.2]
[1762455138918,7.84542828,158.06,158.02,7.56]
[1762455139096,7.84542828,158.06,158.03,7.56]
[1762455139301,7.84542828,158.05,158.01,0.92]
[1762455139493,0.7,158.09,158.02,7.56]
[1762455139730,9.78882769,158.13,158.05,57.84542828]
[1762455139898,7.84542828,158.12,158.07,7.84542828]
[1762455140399,7.84542828,158.12,158.08,0.72]
[1762455140720,7.84542828,158.12,158.09,7.58]
[1762455141493,7.84542828,158.11,158.09,7.58]
[1762455141693,7.84542828,158.12,158.09,7.58]
[1762455142116,7.84542828,158.11,158.09,7.58]
[1762455142316,7.84542828,158.12,158.09,7.58]
[1762455142615,17.63425597,158.13,158.09,7.58]
[1762455142822,7.84542828,158.12,158.09,7.58]
[1762455143219,9.78882769,158.09,158.03,0.7]
[1762455143422,7.84542828,158.07,158.03,8.26]
[1762455143723,9.78882769,158.09,158.03,8.26]
[1762455144026,7.84542828,158.08,158.03,8.26]
[1762455144328,7.84542828,158.07,158.03,8.26]
[1762455144709,7.84542828,158.07,158.04,0.7]
[1762455145010,7.84542828,158.11,158.05,7.84542828]
[1762455145195,7.84542828,158.11,158.06,7.56]
[1762455145398,7.84542828,158.11,158.06,14.58670777]
[1762455145606,9.78882769,158.13,158.07,8.54542828]
[1762455145807,7.84542828,158.13,158.07,8.54542828]
[1762455146629,7.84542828,158.12,158.07,8.54542828]
[1762455146924,7.84542828,158.11,158.07,0.7]
[1762455147701,6.3239107,158.13,158.07,0.7]
[1762455147898,7.84542828,158.11,158.07,0.7]